Cogmind - Beta 13 @@@ ROGUE MODE // 2024.05.27 @ 14:30:54 Player: karotgaemin Result: Destroyed by G-34 Mercenary with Small Laser Performance ------------- Evolutions (1) 500 Regions Visited (2) 400 Robots Destroyed (23) 115 Value Destroyed (484) 484 Prototype IDs (3) 60 Alien Tech Used (0) 0 Bonus (0) 0 TOTAL SCORE: 1559 Bonus ------- None Cogmind --------- Core Integrity 0/400 Matter 300/300 Energy 100/100 System Corruption 1% Temperature Cool (6) Movement Core (350) Ox6 Location -9/Materials Parts ------- > --- POWER (1) -------- (None) > --- PROPULSION (2) --- (None) > --- UTILITY (4) ------ Improved Heat Sink Large Storage Unit Visual Processing Unit Signal Interpreter > --- WEAPON (2) ------- (None) > --- INVENTORY (15) --- Light Deuterium Engine Light Nuclear Core Transport Network Coupler Light Assault Rifle Light Assault Rifle Light Cannon Grenade Launcher Peak State ------------ > --- POWER ------------ Light Nuclear Core > --- PROPULSION ------- Wheel Wheel > --- UTILITY ---------- Large Storage Unit Visual Processing Unit Sensor Array Signal Interpreter > --- WEAPON ----------- Improved Medium Laser Light Assault Rifle > --- INVENTORY -------- Light Deuterium Engine Light Deuterium Engine Improved Heat Sink Transport Network Coupler Light Assault Rifle Light Assault Rifle Light Cannon Grenade Launcher [Rating: 15] Favorites ----------- Power Light Ion Engine Engine Light Ion Engine Power Core Light Nuclear Core Propulsion Wheel Wheel Wheel Utility Large Storage Unit Device Sensor Array Storage Large Storage Unit Processor Signal Interpreter Hackware Hacking Suite Weapon Light Assault Rifle Energy Gun Improved Medium Laser Ballistic Gun Light Assault Rifle Ballistic Cannon Light Cannon Launcher Grenade Launcher Build | -11 -10 -9 ------- Run | Yrd Mat Mat Slots Evolved 2 | . . 2 Power . | . . . Propulsion . | . . . Utility 2 | . . 2 Weapon . | . . . Parts Attached 31 | 6 16 9 Power 9 | 1 3 5 Engine 6 | 1 2 3 Core 3 | . 1 2 Reactor . | . . . Propulsion 5 | 2 3 . Treads . | . . . Leg . | . . . Wheel 5 | 2 3 . Hover . | . . . Flight . | . . . Utility 7 | 1 3 3 Device 2 | . . 2 Storage 2 | 1 1 . Processor 2 | . 1 1 Hackware 1 | . 1 . Protection . | . . . Artifact . | . . . Weapon 10 | 2 7 1 Energy Gun 1 | . . 1 Energy Cannon . | . . . Ballistic Gun 6 | 2 4 . Ballistic Cannon 1 | . 1 . Launcher 2 | . 2 . Special Weapon . | . . . Impact Weapon . | . . . Slashing Weapon . | . . . Piercing Weapon . | . . . Special Melee Weapon . | . . . Unidentified Prototypes 1 | . . 1 Parts Lost 11 | . 5 6 Power 2 | . 1 1 Propulsion 5 | . 3 2 Utility 2 | . 1 1 Weapon 2 | . . 2 Highest Loss Streak 6 | . 4 6 To Critical Strikes . | . . . Average Slot Usage (%) 88 | . 88 87 Engine 7 | . 9 1 Core 4 | . 2 9 Wheel 19 | . 20 17 Device 2 | . . 8 Storage 13 | . 14 11 Processor 7 | . 2 21 Hackware 6 | . 9 . Energy Gun 1 | . . 7 Ballistic Gun 18 | . 21 11 Ballistic Cannon 4 | . 6 . Naked Turns . | . . . Heaviest Build 30 | 10 27 30 Greatest Support 26 | 26 26 20 Greatest Overweight (x) 8 | . 7 8 Average Overweight (x) 1 | . 1 1 Largest Inventory Capacity 15 | 8 15 15 Average Capacity 14 | 6 14 15 Most Carried 10 | 2 10 8 Average Carried 6 | . 6 7 Final Capacity 15 | 8 15 15 Final Carried 8 | 2 8 7 Class Distribution -------------------- 82% | Mutant 15% | Scavenger-Skirmisher Dominant Class ---------------- Mutant | -10/Materials Scavenger-Skirmisher | -9/Materials Resources | -11 -10 -9 ----------- Run | Yrd Mat Mat Matter Collected 715 | 210 418 87 Remotely . | . . . Salvage Created 575 | . 357 218 Parts 47 | . 35 12 Haulers Intercepted 1 | . 1 . Recyclers Shooed . | . . . Parts Field Recycled . | . . . Retrieved Matter . | . . . Parts Self-Destructed . | . . . Prevented . | . . . Kills | -11 -10 -9 ------- Run | Yrd Mat Mat Combat Hostiles Destroyed 16 | . 12 4 Guns 14 | . 10 4 Cannons 1 | . 1 . AOE 1 | . 1 . Classes Destroyed 7 | . 5 2 Worker 4 | . 4 . Hauler 1 | . 1 . Operator 2 | . 1 1 Swarmer 6 | . 6 . Grunt 8 | . 6 2 Brawler 1 | . . 1 Sentry 1 | . . 1 Best Kill Streak 6 | . 6 5 Combat Bots Only 4 | . 3 4 Max Kills in Single Turn 2 | . 2 1 Gunslinging . | . . . Exploded 1 | . 1 . Melee . | . . . Uniques/NPCs Destroyed . | . . . Combat | -11 -10 -9 -------- Run | Yrd Mat Mat Hostile Shots Fired 145 | . 81 64 Missed 40 | . 24 16 Damage Taken 1431 | . 594 837 Core 549 | . 140 409 Absorbed by Shields . | . . . Core Remaining (%) 72 | 100 44 . Volleys Fired 71 | . 52 19 Largest 2 | . 2 2 Hottest 76 | . 55 76 Shots Fired 138 | . 104 34 Gun 103 | . 69 34 Cannon 30 | . 30 . Launcher 5 | . 5 . Special . | . . . Kinetic 118 | . 99 19 Thermal 15 | . . 15 Explosive 5 | . 5 . Electromagnetic . | . . . Robot Hit Streak 11 | . 11 10 Robot Miss Streak 5 | . 5 1 Penetration Max . | . . . Secondary Targets 2 | . . 2 Max Gunslinging Chain 1 | . . 1 Shots Hit Robots 82 | . 57 25 Core Hits 42 | . 33 9 Critical Kills 1 | . 1 . Critical Parts Destroyed . | . . . Critical Strikes 2 | . 1 1 Burn 1 | . . 1 Destroy 1 | . 1 . Melee Attacks . | . . . Impact . | . . . Slashing . | . . . Piercing . | . . . Sneak Attacks . | . . . Combat Hostiles . | . . . Follow-up Attacks . | . . . Damage Inflicted 1095 | . 806 289 Guns 616 | . 327 289 Cannons 256 | . 256 . Explosions 223 | . 223 . Melee . | . . . Ramming . | . . . Kinetic 686 | . 583 103 Thermal 186 | . . 186 Explosive 223 | . 223 . Electromagnetic . | . . . Impact . | . . . Slashing . | . . . Piercing . | . . . Highest Corruption 1 | . . 1 Average Corruption 1 | . . 1 Corruption Purged . | . . . Corruption Blocked . | . . . Overload Shots . | . . . Overflow Damage 9 | . 9 . Projectiles . | . . . Explosions 9 | . 9 . Melee . | . . . Knockbacks 5 | . 5 . Impact . | . . . Kinetic 5 | . 5 . Secondary . | . . . Self-Inflicted Damage 30 | . 30 . Shots 1 | . 1 . Rammed . | . . . Targets Rammed . | . . . Kicked . | . . . Crushed . | . . . Highest Temperature 287 | . 40 287 Average Temperature 70 | . 11 164 Received Heat Transfer 390 | . 195 195 Siege Activations . | . . . Robots Corrupted . | . . . Combat Hostiles . | . . . Parts Fried . | . . . Impact Corruptions . | . . . Robots Melted . | . . . Combat Hostiles . | . . . Parts Melted 1 | . . 1 Heat Transferred 481 | . . 481 Parts Sabotaged . | . . . Parts Stolen . | . . . Parts Stripped . | . . . Power Chain Reactions . | . . . Alert | -11 -10 -9 ------- Run | Yrd Mat Mat Peak Influence 293 | . 293 186 Initial 85 | . . 85 Average 140 | . 163 113 Maximum Alert Level 1 | . 1 . Low Security (%) 77 | 100 67 100 Level 1 22 | . 32 . Level 2 . | . . . Level 3 . | . . . Level 4 . | . . . Level 5 . | . . . High Security . | . . . Max Security . | . . . Squads Dispatched 2 | . 2 . Investigation . | . . . Extermination . | . . . Reinforcement 2 | . 2 . Assault . | . . . Garrison . | . . . Intercept . | . . . Searches Triggered . | . . . Construction Impeded . | . . . Haulers Reinforced . | . . . Active Scanning Responses . | . . . Cargo Convoy Interrupts . | . . . Stealth | -11 -10 -9 --------- Run | Yrd Mat Mat Distress Signals 3 | . 3 . Communications Jammed . | . . . Distress Signals . | . . . Times Spotted 25 | . 18 7 Peak Tracking Total 5 | . 5 4 Tactical Retreats . | . . . Traps | -11 -10 -9 ------- Run | Yrd Mat Mat Traps Triggered . | . . . Indirectly . | . . . Trap Hack Attempts . | . . . Triggered . | . . . Disarmed . | . . . Reprogrammed . | . . . Reused . | . . . Traps Extracted . | . . . Installed . | . . . Triggered . | . . . Machines | -11 -10 -9 ---------- Run | Yrd Mat Mat Machines Disabled 2 | . 2 . Max in Single Turn 1 | . 1 . Machines Repaired . | . . . Machines Dismantled . | . . . Machines Sabotaged . | . . . Overloaded Fab Kills . | . . . Hacking | -11 -10 -9 --------- Run | Yrd Mat Mat Machines Accessed 1 | . 1 . Terminals 1 | . 1 . Fabricators . | . . . Repair Stations . | . . . Recycling Units . | . . . Scanalyzers . | . . . Garrison Access . | . . . Total Hacks 1 | . 1 . Successful 1 | . 1 . Failed . | . . . Catastrophic . | . . . Database Lockouts . | . . . Manual . | . . . Terminals 1 | . 1 . Fabricators . | . . . Repair Stations . | . . . Recycling Units . | . . . Scanalyzers . | . . . Garrison Access . | . . . Terminal Hacks 1 | . 1 . Prototype ID Bank 1 | . 1 . Fabricator Hacks . | . . . Repair Station Hacks . | . . . Recycling Unit Hacks . | . . . Scanalyzer . | . . . Garrison Access Hacks . | . . . Unauthorized Hacks . | . . . Terminals . | . . . Fabricators . | . . . Repair Stations . | . . . Recycling Units . | . . . Scanalyzers . | . . . Garrison Access . | . . . Data Cores Recovered 1 | . . 1 Used . | . . . Hacking Detections . | . . . Full Trace Events . | . . . Feedback Events . | . . . Feedback Blocked . | . . . Robot Schematics Acquired . | . . . Robots Built . | . . . Authchips . | . . . Time . | . . . Total Robot Build Rating . | . . . Part Schematics Acquired . | . . . Parts Built . | . . . Authchips . | . . . Time . | . . . Total Part Build Rating . | . . . Parts Repaired . | . . . Time . | . . . Parts Recycled . | . . . Recycled Matter . | . . . Retrieved Matter . | . . . Retrieved Components . | . . . Parts Scanalyzed . | . . . Part Schematics Acquired . | . . . Parts Damaged . | . . . Bothacking | -11 -10 -9 ------------ Run | Yrd Mat Mat Used RIF Installer . | . . . Robots Hacked . | . . . Non-combat . | . . . Combat . | . . . Robot Hacks Applied . | . . . Relay Couplers Released . | . . . Fabnet Peak Effective % . | . . . Robots Rewired . | . . . Allies Hacked . | . . . Hacks Repelled . | . . . Allies | -11 -10 -9 -------- Run | Yrd Mat Mat Total Allies . | . . . Largest Group . | . . . Highest-Rated Group . | . . . Highest-Rated Ally . | . . . Total Orders . | . . . Ally Attacks . | . . . Total Damage . | . . . Kills . | . . . Allies Corrupted . | . . . Allies Melted . | . . . Intel | -11 -10 -9 ------- Run | Yrd Mat Mat Robot Analysis Total . | . . . Derelict Logs Recovered . | . . . Drone Launches . | . . . Drone Recoveries . | . . . Exploration | -11 -10 -9 ------------- Run | Yrd Mat Mat Turns Passed 902 | 61 625 216 Spaces Moved 553 | 54 436 63 Core 18 | 4 5 9 Treads . | . . . Legs . | . . . Wheels 535 | 50 431 54 Hover . | . . . Flight . | . . . Fastest Speed 50 | 50 90 95 Average Speed 104 | 87 102 135 Slowest Speed 450 | 90 400 450 Overloaded Moves . | . . . Propulsion Burnouts . | . . . Robots Hopped . | . . . Cave-ins Triggered . | . . . Exploration Rate (%) 26 | 5 65 10 Regions Visited 2 Branch Regions . Pre-discovered Areas . | . . . Known Exits Taken 1 | . 1 . Unknown Exits Taken 1 | 1 . . Scrap Searched . | . . . Spaces Dug . | . . . Terrain Destroyed 22 | . 22 . Melee . | . . . Projectile . | . . . AOE 22 | . 22 . Terrain Rammed . | . . . Walls Destroyed . | . . . Machines Disabled . | . . . Actions | -11 -10 -9 --------- Run | Yrd Mat Mat Total 751 | 67 520 164 Wait 70 | . 3 67 Move 551 | 53 435 63 Hop . | . . . Pick Up 25 | 8 13 4 Fast Attach . | . . . Attach 15 | 6 6 3 Detach . | . . . Swap 16 | . 10 6 Drop 3 | . 1 2 Fire 71 | . 52 19 Melee . | . . . Ram . | . . . Kick . | . . . Crush . | . . . Escape Stasis . | . . . Rewire . | . . . Trap . | . . . Miscellaneous . | . . . Route ------- -11/Scrapyard -10/Materials -9/Materials (discovered 1 exit: [*Min]) History --------- Turn | Location | Event 8 | -11/Scrapyard | Discovered new exit (range 16) 62 | -11/Scrapyard | Entered Materials 313 | -10/Materials | Build established: Mutant 502 | -10/Materials | Core integrity fell below 50% 534 | -10/Materials | Lost 4 parts (1p2n1u) 665 | -10/Materials | Discovered new exit (range 14) 686 | -10/Materials | Identified exit to Materials 687 | -10/Materials | Entered another Materials area 687 | -9/Materials | Evolved 2 slots: Utility x2 687 | -9/Materials | Discovered new exit (range 10) 871 | -9/Materials | Core integrity fell below 50% 883 | -9/Materials | Core integrity fell below 20% 903 | -9/Materials | Destroyed by G-34 Mercenary with Small Laser Last Messages --------------- Switching to secondary target: G-34 Mercenary. Sensor Array destroyed. System corrupted by crushing effect (+1). Knocked back. B-36 Bruiser destroyed. G-34 Mercenary destroyed. Switching to secondary target: Y-45 Defender. Wheel destroyed. Y-45 Defender destroyed. Acquired 60 matter. Imp. Medium Laser destroyed. Wheel destroyed. Lgt. Assault Rifle destroyed. K-01 Serf collects debris. M-13 Machinist repairs L-31 Rogue. K-01 Serf collects debris. Lgt. Deuterium Engine destroyed. K-01 Serf collects debris. Acquired 15 matter. K-01 Serf collects debris. Map ----- +----------------------------------------------------+ | ????????????????????????????????????????? | | ????????????????????????????????????????? | | ????????????????????????????????????????? | | ????????????????????????????????????????? | | ????????????????????????????????????????? | | ????????????????????????????????????????? | | ????????????????????????????????????????? | | ????????????????????????????????????????? | | ????????????????????????????????????????? | | ????????????????????????????????????????? | | ????????????????????????????????????????? | | ????????????????????????????????????????? | | ?????????????????? ???????????????????? | | ?????????????????? ???????????????????? | | ?????????????????? ""? ?????????????? | | ?????????????????? """ #???????????? | | ?????????????????# " +???????????? | | ?????????????????# #???????????? | | ?????????????????# #???????????? | | ??????????######## #???????????? | | ??????????# # #???????????? | | ??????? ??# # #???????????? | | ????# ?# k # #???????????? | | ????# ?# # +???????????? | | ????# ?+ # #???????????? | | ????? ?# @# *" ! #???????????? | | ????? ?# l# %T #???????????? | | ?????# ?# g # =" #???????????? | | ?????# ## ;= #???????????? | | ?????# ## #%* #???????????? | | ?????# ## #/ ###+####???????????? | | ?????# ## #%= #??????????????????? | | ?????# ## #!* #??????????????????? | | ????## ######### ! ##?????????????????? | | ????# ####### [ #?????????????????? | | ????# * #?????????????????? | | ????# < #?????????????????? | | ????# = #?????????????????? | | ????# ####### #?????????????????? | | ????## ##############?????????????????? | | ?##### #] ! #???????????????????????? | | ?#== # ! #???????????????????????? | | ?#== + #???????????????????????? | | ?#!! # """ #???????????????????????? | | ?#!* # """ #???????????????????????? | | ?#* # """ #???????????????????????? | | ?#** ############???????????????????????? | | ?#####??????????????????????????????????? | | ????????????????????????????????????????? | | ????????????????????????????????????????? | +----------------------------------------------------+ Best States ------------- Heat Dissipation 42 Energy Generation 14 Energy Capacity 160 Matter Stores 300 Matter Capacity 300 Sight Range 18 Robot Scan Range 14 Terrain Scan Density 10 Evasion (%) 42 Offensive Hacking 10 Item Schematics ----------------- None Robot Schematics ------------------ None Fabricated ------------ Nothing Alien Tech Used ----------------- None Achievements -------------- None Challenges ------------ None Game ------ Seed SeismicDeliveryPrototype Manual? 0 Play Time 00:10:52 Cumulative 7.6 hours Start 2024.05.27 @ 14:22:03 End 2024.05.27 @ 14:30:54 Sessions 1 Manual Loads 0 Difficulty Rogue Special Mode None Game No. 20 Rogue 20 Adventurer 0 Explorer 0 Win Type - Total 0 Types 0/0/0/0/0/0/0/0/0 Lore% 6 Gallery% 20 Achievement% 13 Wizard Run 0 Options --------- Layout 1 ASCII 0 Keyboard 0 Movement Mouse Keybinds 0 Fullscreen 2 Font 24/Smallcaps Map View 50x35 Zoom Use 0% Tactical HUD 0 Map Filters NONE Filters NONE Steam 1 RUN: 88bcbb12-9639-4523-ac17-f352fd5c58a5